bitfinex/quotes_ETHUSD_20250319
["timestamp","ask_amount","ask_price","bid_price","bid_amount"]
[1742395607765,3.7866,2032.4,2032.2,4.92071]
[1742395607939,0.7866,2032.4,2032.2,4.92071]
[1742395608429,0.7866,2032.4,2032.1,4.921]
[1742395608650,0.7866,2032.4,2031.9,4.9215]
[1742395608651,4.53625695,2032.2,2031.9,4.9215]
[1742395608950,4.53625695,2032.2,2032.1,4.92101]
[1742395609106,5.366,2032.2,2032.1,4.92092]
[1742395610017,5.366,2032.2,2032.0,4.92118]
[1742395610255,5.366,2032.2,2032.1,4.92101]
[1742395610909,0.7866,2032.4,2032.2,4.92068]
[1742395611113,0.7866,2032.4,2031.8,1.00948519]
[1742395611114,5.32285695,2032.4,2031.8,1.00948519]
[1742395611315,4.53625695,2032.2,2031.8,4.92172]
[1742395611536,0.7644,2032.1,2031.6,4.92217]
[1742395611750,5.68559,2032.1,2031.7,4.9219]
[1742395612049,11.05059,2032.1,2031.7,9.8437]
[1742395612248,6.1294,2032.1,2031.8,4.92165]
[1742395612447,5.365,2032.1,2032.0,4.92125]
[1742395612658,9.1198,2032.4,2032.1,4.92091]
[1742395612809,11.4694137,2032.4,2032.1,4.92085]
[1742395613011,11.4694137,2032.4,2032.1,4.92097]
[1742395613212,11.4694137,2032.4,2032.1,9.84183]
[1742395613552,11.4694137,2032.4,2032.2,4.92062]
[1742395613908,16.3897037,2032.4,2032.1,4.92086]
[1742395614137,6.62885302,2032.3,2032.1,4.92092]
[1742395614346,9.1198,2032.4,2032.0,4.92108]
[1742395614514,14.04009,2032.4,2032.0,4.92108]
[1742395615153,14.04009,2032.4,2032.0,9.84216]
[1742395615357,9.1198,2032.4,2032.1,4.92098]
[1742395615560,1.85762669,2032.3,2032.0,4.92119]
[1742395616154,1.85762669,2032.3,2032.1,4.92098]
[1742395616310,9.1198,2032.4,2032.3,4.92053]
[1742395616816,8.364,2032.6,2032.4,4.92015]
[1742395617016,3.0,2032.5,2032.4,4.92015]
[1742395617222,7.53625695,2032.6,2032.3,4.92043]
[1742395617532,0.771,2032.7,2032.5,4.91989]
[1742395617720,6.135,2032.7,2032.5,9.83981]
[1742395617916,6.135,2032.7,2032.5,4.91987]
[1742395618119,6.135,2032.7,2032.6,4.9198]
[1742395618317,5.364,2032.7,2032.6,4.9198]
[1742395619361,4.53625695,2033.0,2032.7,4.91955]
[1742395619511,5.363,2033.0,2032.8,4.91921]
[1742395619717,0.7954,2032.8,2032.3,0.7879]
[1742395619912,9.45593695,2032.7,2032.3,4.92041]
[1742395620214,0.55,2032.6,2032.3,4.92037]
[1742395620414,5.362,2032.6,2032.5,4.91986]
[1742395620627,5.362,2032.6,2032.3,4.92039]
[1742395620860,6.4313657,2032.6,2032.3,4.92039]
[1742395621062,6.4313657,2032.6,2032.3,9.84076]
[1742395621220,6.4313657,2032.6,2032.4,4.92007]
[1742395621419,5.362,2032.6,2032.5,4.92004]
[1742395621824,5.362,2032.6,2032.1,4.92086]
[1742395622022,5.362,2032.6,2032.0,0.7879]
[1742395622023,5.362,2032.6,2032.4,4.92029]
[1742395622417,5.362,2032.6,2032.3,4.92049]
[1742395622658,7.4152677,2032.6,2032.4,4.92028]
[1742395622840,5.362,2032.6,2032.4,9.8404]
[1742395623055,5.362,2032.6,2032.4,4.92012]
[1742395623941,5.67312,2032.4,2032.2,4.92064]
[1742395624151,0.753,2032.4,2032.2,9.84129]
[1742395624447,6.115,2032.6,2032.3,4.92053]
[1742395624771,8.16401769,2032.6,2032.4,4.92025]
[1742395624972,5.362,2032.6,2032.4,4.92025]
[1742395625332,5.362,2032.6,2032.5,4.92004]
[1742395625831,0.8275,2033.0,2032.4,0.8228]
[1742395626156,5.361,2033.1,2032.8,4.91915]
[1742395626533,9.89725695,2033.1,2032.7,4.91946]
[1742395626729,5.73716,2032.8,2032.3,4.92037]
[1742395626934,4.9199,2032.6,2032.3,4.92053]
[1742395627179,0.55,2032.6,2032.0,0.82]
[1742395627334,0.55,2032.6,2032.3,4.92053]
[1742395627335,5.08625695,2032.6,2032.3,4.92053]
[1742395627737,0.55,2032.6,2032.3,4.92053]
[1742395628030,12.11662165,2032.6,2032.2,4.92071]
[1742395628565,4.92004,2032.5,2032.1,4.92091]
[1742395628769,9.89725695,2032.7,2032.4,4.92028]
[1742395629049,14.81684695,2032.7,2032.4,4.92018]
[1742395629263,5.361,2032.7,2032.4,4.92017]
[1742395629467,5.361,2032.7,2032.4,4.92015]
[1742395629772,5.36,2032.9,2032.6,4.91969]
[1742395629980,5.36,2032.9,2032.6,4.91964]
[1742395630147,5.36,2032.9,2032.7,4.91947]
[1742395630343,5.36,2032.9,2032.6,4.91964]
[1742395630769,5.36,2032.9,2032.7,4.91947]
[1742395630967,5.36,2032.9,2032.6,4.91971]
[1742395631183,5.36,2032.9,2032.7,4.9194]
[1742395631385,6.1575,2033.0,2032.8,4.9192]
[1742395631547,5.36,2033.0,2032.8,4.91926]
[1742395632085,5.359,2033.1,2032.8,9.83845]
[1742395632290,9.89525695,2033.1,2032.8,4.91919]
[1742395632446,4.91892,2033.0,2032.7,4.91951]
[1742395632647,9.89525695,2033.1,2032.8,4.91928]
[1742395632874,0.819,2033.2,2032.7,4.91956]
[1742395633081,5.359,2033.1,2032.9,4.91898]
[1742395633591,5.359,2033.1,2032.8,4.91931]
[1742395633793,5.359,2033.1,2032.8,4.91918]
[1742395634094,10.27759,2033.1,2032.8,4.91918]
[1742395634394,0.55,2033.0,2032.6,4.9198]
[1742395634597,9.89525695,2033.1,2032.8,4.91922]
[1742395635086,5.359,2033.1,2032.8,4.91922]
[1742395635256,5.359,2033.1,2032.9,4.91886]
[1742395635456,5.359,2033.1,2032.9,9.83783]
[1742395635663,5.359,2033.1,2032.9,4.91897]
[1742395635984,5.359,2033.1,2032.9,4.91891]
[1742395636145,8.32855695,2033.4,2033.1,4.91859]
[1742395636348,0.7923,2033.4,2033.1,4.91859]
[1742395636580,6.1503,2033.4,2033.1,4.91859]
[1742395636787,6.1503,2033.4,2033.1,4.91844]
[1742395637085,11.06822,2033.4,2033.1,4.91844]
[1742395637579,6.1503,2033.4,2033.1,4.91844]
[1742395637881,0.8185,2033.7,2033.0,4.53625695]
[1742395638082,0.8185,2034.0,2033.4,4.91782]
[1742395638282,6.1394,2034.2,2033.5,0.8136]
[1742395638475,6.1394,2034.2,2033.9,4.91647]
[1742395638671,6.1394,2034.2,2034.1,4.91617]
[1742395638850,5.357,2034.2,2034.1,4.91617]
[1742395639050,5.357,2034.2,2034.0,4.91631]
[1742395639257,5.357,2034.2,2034.0,4.91628]
[1742395639585,14.80925695,2034.2,2033.8,4.91682]
[1742395639806,0.7958,2034.0,2033.7,4.91691]
[1742395640083,0.7958,2034.0,2033.3,6.47743487]
[1742395640286,6.1786,2034.2,2034.0,4.91624]
[1742395640653,6.1786,2034.2,2034.0,9.83253]
[1742395640853,6.1786,2034.2,2033.5,5.66882]
[1742395640854,5.357,2034.2,2033.5,5.66882]
[1742395641059,5.357,2034.2,2033.9,4.91664]
[1742395641260,5.357,2034.2,2034.0,4.91639]
[1742395641998,5.905,2034.3,2034.0,4.91639]
[1742395642490,5.355,2034.3,2034.0,4.91639]
[1742395642661,10.24802695,2034.6,2034.2,4.91581]
[1742395642860,5.355,2034.5,2034.2,4.91581]
[1742395643053,5.355,2034.5,2034.2,4.91578]
[1742395643257,5.355,2034.5,2034.1,4.91603]
[1742395643482,0.55,2034.4,2033.9,0.777]
[1742395643667,4.53625695,2034.1,2033.7,0.7814]
[1742395643871,5.353,2034.1,2033.9,4.91662]
[1742395644594,4.9165,2034.0,2033.6,4.91719]
[1742395644793,5.353,2034.1,2033.7,4.91704]
[1742395645094,5.353,2034.1,2033.8,4.91676]
[1742395645257,5.353,2034.1,2034.0,4.91642]
[1742395645682,5.353,2034.3,2033.9,5.70595]
[1742395645880,5.353,2034.3,2034.1,4.91599]
[1742395646320,10.26877,2034.3,2033.9,5.70578]
[1742395646494,5.08625695,2034.2,2033.7,5.69723]
[1742395646693,5.08625695,2034.2,2033.7,4.91702]
[1742395646694,5.68784,2034.1,2033.7,4.91702]
[1742395646910,5.68784,2034.1,2033.7,4.91699]
[1742395647407,0.7715,2034.1,2033.8,4.91687]
[1742395647612,0.7715,2034.1,2033.9,4.91646]
[1742395648225,4.53625695,2034.2,2034.0,4.91642]
[1742395648427,5.353,2034.3,2034.0,4.91642]
[1742395648737,5.352,2034.3,2034.1,4.91605]
[1742395649197,5.352,2034.4,2034.3,4.91569]
[1742395649589,5.352,2034.4,2034.2,4.91584]
[1742395649791,15.19393695,2034.6,2034.2,4.91584]
[1742395650020,0.8274,2034.6,2033.9,5.72805]
[1742395650225,6.1784,2034.6,2034.3,9.83106]
[1742395650433,6.1784,2034.6,2034.4,4.91541]
[1742395650786,6.1784,2034.6,2034.4,9.83075]
[1742395650984,23.25949,2034.9,2034.3,0.7945]
[1742395651196,5.351,2034.8,2034.5,9.8301]
[1742395651419,9.88725695,2034.8,2034.3,0.7945]
[1742395651585,4.53625695,2034.6,2034.1,4.91615]
[1742395651788,0.825,2034.5,2034.3,4.91551]
[1742395652014,5.351,2034.6,2034.5,4.91521]
[1742395652212,5.351,2034.6,2034.3,4.91569]
[1742395652424,5.351,2034.6,2034.3,4.91555]
[1742395652724,5.351,2034.6,2034.4,4.91535]
[1742395652890,5.35,2034.7,2034.5,4.91521]
[1742395653091,3.0,2034.8,2034.6,4.91497]
[1742395653285,5.35,2034.8,2034.5,4.91521]
[1742395653487,13.5021395,2034.9,2034.5,4.91507]
[1742395653687,13.9378895,2034.9,2034.7,4.91464]
[1742395654029,10.66185695,2034.9,2034.6,9.82972]
[1742395654227,6.1256,2034.9,2034.7,4.9147]
[1742395654430,0.05054851,2035.0,2034.9,4.91424]
[1742395654722,4.96460851,2035.0,2034.7,4.91472]
[1742395654923,0.05054851,2035.0,2034.7,4.91472]
[1742395655129,5.68434,2034.9,2034.6,4.91496]
[1742395655288,0.7701,2034.9,2034.6,4.91496]
[1742395655491,0.7701,2034.9,2034.6,4.91482]
[1742395655888,5.68438,2034.9,2034.6,4.91482]
[1742395656109,0.7701,2034.9,2034.6,4.91482]
[1742395656314,0.7701,2034.9,2034.7,4.91468]
[1742395656727,0.05054851,2035.0,2034.7,4.9146]
[1742395656914,0.05054851,2035.0,2034.8,4.91432]
[1742395657110,0.05054851,2035.0,2034.7,4.9146]
[1742395657312,6.04270293,2035.0,2034.8,4.91444]
[1742395657519,4.14164508,2035.0,2034.8,9.82877]
[1742395657726,0.05054851,2035.0,2034.9,4.91424]
[1742395658095,0.05054851,2035.0,2034.8,4.91433]
[1742395658496,4.14164508,2035.0,2034.7,4.91471]
[1742395658727,0.05054851,2035.0,2034.5,4.9152]
[1742395658929,0.05054851,2035.0,2034.8,9.82864]
[1742395659233,0.05054851,2035.0,2034.9,4.91424]
[1742395659736,0.05054851,2035.0,2034.8,4.91429]
[1742395659933,0.05054851,2035.0,2034.8,9.82863]
[1742395660232,0.05054851,2035.0,2034.9,4.91424]
[1742395663109,0.05054851,2035.0,2034.8,9.82869]
[1742395663312,0.05054851,2035.0,2034.9,4.91424]
[1742395665099,8.51e-06,2035.0,2034.9,15.24143629]
[1742395665299,8.51e-06,2035.0,2034.9,40.96462943]
[1742395665500,0.196291,2036.3,2036.1,4.91135]
[1742395666039,0.196291,2036.3,2036.0,4.91157]
[1742395666040,4.28738757,2036.3,2036.0,4.91157]
[1742395666244,2.02927176,2036.3,2035.5,6.168]
[1742395666421,4.09109657,2036.1,2035.8,4.91198]
[1742395666621,4.09109657,2036.1,2035.8,4.91191]
[1742395666819,13.91396657,2036.1,2035.7,4.91228]
[1742395667019,4.09109657,2035.9,2035.5,5.73576]
[1742395667210,0.55,2036.0,2035.7,4.91213]
[1742395667410,10.25543,2036.1,2035.7,4.91219]
[1742395667630,5.344,2036.1,2035.8,4.91196]
[1742395667822,10.25537,2036.1,2035.8,4.91196]
[1742395668018,4.9116,2036.0,2035.7,4.91217]
[1742395668240,6.506967,2036.0,2035.6,4.91253]
[1742395668444,0.55,2035.9,2035.4,4.91287]
[1742395668619,0.8212,2035.8,2035.5,4.91266]
[1742395668826,5.7334,2035.8,2035.4,9.82586]
[1742395669135,0.8212,2035.8,2035.5,4.91277]
[1742395669306,0.8212,2035.8,2035.5,4.91268]
[1742395669509,0.8212,2035.8,2035.6,4.91255]
[1742395669721,0.8212,2035.8,2035.5,4.91274]
[1742395669924,4.91231,2035.7,2035.4,4.913]
[1742395670119,5.73327,2035.8,2035.4,4.913]
[1742395670512,7.99938527,2035.8,2035.5,4.91277]
[1742395670713,12.91165527,2035.8,2035.4,4.913]
[1742395670953,3.08731527,2035.8,2035.5,4.91271]
[1742395671111,6.1109,2036.0,2035.6,4.91246]
[1742395671310,0.7679,2036.0,2035.9,4.91183]
[1742395671910,6.1315,2036.2,2035.6,4.91235]
[1742395672124,6.1315,2036.2,2036.0,4.91148]
[1742395672324,11.6755491,2036.2,2035.8,4.91195]
[1742395672523,6.7642791,2036.2,2035.9,4.91182]
[1742395672736,6.7642791,2036.2,2035.9,4.9117]
[1742395672948,0.7895,2036.2,2036.0,4.91154]
[1742395673183,0.7895,2036.2,2036.0,4.91139]
[1742395673538,0.196291,2036.3,2036.1,4.91125]
[1742395673886,0.196291,2036.3,2036.2,4.9111]
[1742395676336,1e-06,2036.3,2036.2,13.26782057]
[1742395676643,1e-06,2036.3,2036.2,8.6921]
[1742395676844,1e-06,2036.3,2036.2,7.9111]
[1742395677057,1e-06,2036.3,2036.2,4.9111]
[1742395677441,1e-06,2036.3,2036.1,4.9113]
[1742395677442,1e-06,2036.3,2036.0,6.69615365]
[1742395677671,1e-06,2036.3,2036.0,5.87715365]
[1742395677973,1e-06,2036.3,2036.2,4.9111]
[1742395678160,4.910961,2036.3,2036.0,4.91155]
[1742395678365,4.910961,2036.3,2035.9,4.91182]
[1742395678545,4.910961,2036.3,2035.9,9.82351]
[1742395678744,4.910961,2036.3,2036.0,4.91157]
[1742395679058,4.91136,2036.1,2035.7,4.9122]
[1742395679275,4.91136,2036.1,2035.5,0.7917]
[1742395679276,0.55,2036.1,2035.8,4.91198]
[1742395679449,9.43879575,2036.2,2035.9,4.91173]
[1742395679450,4.52766575,2036.2,2035.9,4.91173]
[1742395679780,4.910871,2036.3,2036.0,4.91147]
[1742395679974,4.910871,2036.3,2035.9,4.91169]
[1742395680161,4.910871,2036.3,2035.9,9.82337]
[1742395680472,6.95905668,2036.3,2035.9,4.91168]
[1742395680775,4.9125,2035.7,2035.3,5.69296]
[1742395681078,0.8019,2035.7,2035.1,0.7799]
[1742395681237,0.8019,2035.7,2035.6,4.91255]
[1742395681443,0.8019,2035.7,2035.5,4.91277]
[1742395681643,0.8019,2035.7,2035.6,4.91255]
[1742395682055,5.339,2035.9,2035.8,4.91207]
[1742395682262,5.339,2035.9,2035.7,4.91223]
[1742395682787,0.751401,2036.3,2036.1,4.91123]
[1742395682987,1e-06,2036.3,2036.2,4.9111]
[1742395683190,1e-06,2036.3,2036.1,4.91123]
[1742395683346,1e-06,2036.3,2036.0,4.91152]
[1742395683547,1e-06,2036.3,2036.1,4.91112]
[1742395683742,1e-06,2036.3,2036.2,4.9111]
[1742395684580,1e-06,2036.3,2036.2,4.95914835]
[1742395684945,1e-06,2036.3,2036.2,4.9111]
[1742395685784,1e-06,2036.3,2036.2,4.95913989]
[1742395685961,1e-06,2036.3,2036.2,4.9111]
[1742395686877,1e-06,2036.3,2036.2,7.95913928]
[1742395687044,1e-06,2036.3,2036.2,18.57916575]
[1742395687584,1e-06,2036.3,2036.2,25.26916575]
[1742395687742,1e-06,2036.3,2036.2,26.24482832]
[1742395688349,0.082,2037.0,2036.2,26.24482832]
[1742395688350,1e-06,2037.0,2036.9,5.71922]
[1742395688558,1e-06,2037.0,2036.9,15.63186773]
[1742395688765,1e-06,2037.0,2036.9,18.58388575]
[1742395691782,1e-06,2037.0,2036.9,18.94887331]
[1742395692502,1e-06,2037.0,2036.9,19.49887331]
[1742395693506,0.01,2037.4,2036.9,19.49887331]
[1742395693507,5.42141815,2038.3,2038.0,4.9067]
[1742395693658,4.90639,2038.2,2037.8,4.90721]
[1742395693868,9.43405575,2038.2,2037.8,4.90721]
[1742395694111,9.43405575,2038.2,2037.9,4.907]
[1742395694404,9.43405575,2038.2,2037.8,4.90706]
[1742395694560,4.90667,2038.1,2037.7,4.90734]
[1742395694765,4.90739,2037.8,2037.4,4.90812]
[1742395695000,4.90758,2037.7,2037.3,4.90831]
[1742395695298,0.7573,2037.6,2037.3,4.90831]
[1742395695500,0.7573,2037.6,2037.1,4.90871]
[1742395695501,10.19271575,2037.6,2037.1,4.90871]
[1742395695813,5.92730157,2037.5,2037.1,4.9088]
[1742395696160,1.08062577,2037.5,2036.8,0.7545]
[1742395696364,1.01927157,2037.5,2037.2,4.9085]
[1742395697500,5.92726157,2037.5,2037.1,4.90889]
[1742395697862,5.92733157,2037.5,2036.9,3.0]
[1742395698064,1.01927157,2037.5,2037.2,4.90868]
[1742395698762,5.92729157,2037.5,2037.1,4.90892]
[1742395698992,1.01927157,2037.5,2037.2,4.90867]
[1742395699503,1.01927157,2037.5,2037.1,4.90893]
[1742395699504,1.01927157,2037.5,2037.1,4.90889]
[1742395699808,4.90849,2037.3,2036.9,4.90928]
[1742395700096,4.90897,2037.1,2036.7,4.90968]
[1742395700297,0.7626,2036.8,2036.6,4.91013]
[1742395700467,0.7626,2036.8,2036.7,4.9099]
[1742395701100,0.7626,2036.8,2036.4,0.96098517]
[1742395701101,5.29026575,2036.8,2036.4,0.96098517]
[1742395701401,4.90992,2036.7,2036.4,4.91042]
[1742395701604,6.0946,2036.8,2036.6,4.91013]
[1742395701894,6.0946,2036.8,2036.5,4.91029]
[1742395702257,5.332,2036.8,2036.7,4.9099]
[1742395702462,4.52766575,2037.1,2036.6,4.90995]
[1742395702463,11.06908,2037.1,2036.6,4.90995]
[1742395702692,0.8291,2037.1,2037.0,4.90918]
[1742395703301,5.331,2037.3,2037.2,4.90864]
[1742395703461,5.331,2037.3,2036.7,7.90987]
[1742395703666,0.7794,2037.4,2037.2,4.90869]
[1742395703860,0.7794,2037.4,2037.1,4.90892]
[1742395703861,0.7794,2037.4,2037.1,4.90888]
[1742395704098,7.35248833,2037.4,2037.1,4.90883]
[1742395704395,0.7794,2037.4,2037.2,4.9086]
[1742395704595,0.772,2037.6,2037.4,4.90801]
[1742395704805,0.772,2037.6,2037.3,9.81673]
[1742395705099,5.29966575,2037.9,2037.6,4.90759]
[1742395705261,5.331,2037.8,2037.6,4.90759]
[1742395705464,5.331,2037.8,2037.3,4.90844]
[1742395705717,15.14575,2037.8,2037.4,4.90813]
[1742395705898,15.14575,2037.8,2037.2,4.90853]
[1742395705899,9.43518575,2037.7,2037.2,4.90853]
[1742395706085,0.7624,2037.4,2037.1,4.90888]
[1742395706492,0.7624,2037.4,2037.1,4.90878]
[1742395706694,0.7624,2037.4,2037.1,9.81757]
[1742395706908,0.7624,2037.4,2037.1,4.90878]
[1742395707125,9.43624575,2037.3,2036.9,4.9094]
[1742395707276,4.9088,2037.2,2036.8,12.81914]
[1742395707476,4.9088,2037.2,2036.9,4.90937]
[1742395707676,4.52766575,2037.3,2037.0,4.90913]
[1742395707933,9.43623575,2037.3,2036.9,4.90933]
[1742395708234,9.43623575,2037.3,2037.1,4.90879]
[1742395708235,4.52766575,2037.3,2037.1,4.90879]
[1742395708377,6.0924,2037.4,2037.1,4.90879]
[1742395708575,4.9085,2037.3,2037.0,4.90913]
[1742395708795,4.90872,2037.2,2036.9,4.9094]
[1742395708995,4.52766575,2037.3,2037.2,4.90869]
[1742395709200,6.0924,2037.4,2037.2,4.90869]
[1742395709388,6.0924,2037.4,2037.1,4.90881]
[1742395709587,6.0924,2037.4,2037.1,4.90879]
[1742395709810,11.00063,2037.4,2037.0,4.90911]
[1742395710016,11.00063,2037.4,2036.9,4.90941]
[1742395710017,9.43622575,2037.3,2036.9,4.9094]
[1742395710219,9.43622575,2037.3,2036.9,9.8188]
[1742395710421,0.7709,2037.0,2036.4,0.8271]
[1742395710628,4.90946,2036.9,2036.5,4.91025]
[1742395710828,4.90946,2036.9,2036.6,4.91014]
[1742395711232,6.1009,2037.0,2036.7,4.9098]
[1742395711613,11.01008,2037.0,2036.6,4.91014]
[1742395711792,4.91052,2036.5,2036.1,4.91125]
[1742395711993,4.52766575,2036.4,2035.9,4.9116]
[1742395712203,4.91095,2036.3,2035.9,4.9116]
[1742395712391,5.74081,2036.2,2035.8,4.91205]
[1742395712587,0.8297,2036.2,2035.8,4.91206]
[1742395712794,5.7409,2036.2,2035.8,4.91192]
[1742395712993,5.35736575,2036.2,2035.9,4.91173]
[1742395713294,5.35736575,2036.2,2035.9,4.91167]
[1742395713504,0.8297,2036.2,2035.9,4.91167]
[1742395713689,0.8297,2036.2,2036.1,4.91135]
[1742395713896,0.8297,2036.2,2036.0,4.91158]
[1742395714112,0.8297,2036.2,2036.1,4.91135]
[1742395714313,0.8297,2036.2,2036.0,4.91158]
[1742395715237,0.8297,2036.2,2036.0,4.91141]
[1742395715422,0.8297,2036.2,2035.9,4.91163]
[1742395715894,4.52766575,2036.0,2035.6,4.91232]
[1742395716097,4.52766575,2036.0,2035.7,4.91226]
[1742395716307,0.8297,2036.2,2035.9,4.91174]
[1742395716625,0.8297,2036.2,2035.5,7.91278]
[1742395716626,0.7717,2036.4,2036.1,4.91135]
[1742395716927,0.7717,2036.4,2036.2,4.91109]
[1742395716928,6.1017,2036.4,2036.2,4.91109]
[1742395717125,6.1017,2036.4,2036.1,4.91119]
[1742395717489,6.1017,2036.4,2036.1,4.91112]
[1742395717717,6.1017,2036.4,2036.2,4.911]
[1742395717932,6.1017,2036.4,2036.3,4.91086]
[1742395718436,4.9109,2036.3,2036.0,4.91151]
[1742395718616,0.7938,2036.1,2035.9,4.91175]
[1742395718929,0.7938,2036.1,2035.8,4.91199]
[1742395719125,0.7938,2036.1,2035.8,4.91196]
[1742395719326,4.91172,2036.0,2035.6,4.91241]
[1742395719644,0.7938,2036.1,2035.8,9.82398]
[1742395719794,0.7938,2036.1,2035.8,4.91195]
[1742395720318,0.7938,2036.1,2035.8,9.82392]
[1742395720623,0.761,2036.3,2036.0,4.91159]
[1742395720841,0.761,2036.3,2036.2,4.9111]
[1742395721006,0.761,2036.5,2036.3,4.91077]
[1742395721209,5.67144,2036.5,2036.2,4.91102]
[1742395721435,5.67144,2036.5,2036.1,4.91131]
[1742395721845,10.58199,2036.5,2036.1,4.91131]
[1742395722031,0.761,2036.5,2036.2,4.91108]
[1742395722223,0.761,2036.5,2036.4,4.91062]
[1742395722420,0.761,2036.5,2036.3,4.91076]
[1742395722626,0.761,2036.5,2036.2,4.91104]
[1742395723046,4.91066,2036.4,2035.8,3.7716]
[1742395723253,5.67139,2036.5,2035.8,3.7716]
[1742395723254,0.761,2036.5,2036.2,4.91092]
[1742395723458,5.33,2036.6,2036.0,0.04805926]
[1742395723627,4.9104,2036.5,2035.8,8.68355]
[1742395723959,4.9104,2036.5,2036.1,4.91118]
[1742395724123,4.91087,2036.3,2036.0,4.91157]
[1742395724328,6.46493658,2036.5,2036.1,4.91134]
[1742395724529,5.6692,2036.3,2035.9,4.91181]
[1742395724731,10.5803,2036.3,2035.9,4.91181]
[1742395724941,4.91111,2036.2,2035.8,4.91205]
[1742395725143,0.7919,2035.9,2035.6,4.91239]
[1742395725332,0.7919,2035.9,2035.7,4.91221]
[1742395725659,0.8024,2036.1,2035.7,4.91221]
[1742395725851,0.8024,2036.1,2035.8,4.912]
[1742395726155,0.8024,2036.1,2035.8,4.91195]
[1742395726517,5.71381,2036.1,2035.8,4.91195]
[1742395727732,0.8024,2036.1,2035.9,4.91164]
[1742395728354,3.757,2036.3,2036.0,4.91145]
[1742395728526,6.086,2036.3,2036.1,4.91133]
[1742395728857,0.75142739,2036.3,2036.1,4.9112]
[1742395729354,5.329,2036.5,2036.3,4.9108]
[1742395729519,5.329,2036.5,2036.3,4.91076]
[1742395729723,9.81927,2036.9,2036.5,4.91036]
[1742395729913,0.55,2036.7,2036.4,4.91046]
[1742395730118,0.55,2036.7,2036.4,9.82099]
[1742395731060,0.55,2036.7,2036.5,4.91036]
[1742395731345,0.55,2036.7,2036.4,4.91062]
[1742395731755,0.55,2036.7,2036.2,4.91089]
[1742395731756,4.91027,2036.6,2036.2,4.91089]
[1742395731925,4.91089,2036.3,2035.8,0.8188]
[1742395732124,4.91089,2036.3,2035.9,4.9116]
[1742395732422,0.7572,2036.1,2035.9,4.9116]
[1742395732647,5.6687,2036.1,2035.7,4.91208]
[1742395732860,0.7572,2036.1,2035.7,4.91208]
[1742395733023,4.91162,2036.0,2035.5,4.91277]
[1742395733218,5.46193,2035.9,2035.5,4.91277]
[1742395733429,0.7983,2035.8,2035.5,4.91277]
[1742395733769,0.7983,2035.8,2035.5,9.82541]
[1742395734146,0.7983,2035.8,2035.6,4.91247]
[1742395734341,0.7983,2035.8,2035.6,4.91242]
[1742395734856,0.7983,2035.8,2035.6,4.91238]
[1742395735863,0.7983,2035.8,2035.6,4.91249]
[1742395736242,0.7983,2035.8,2035.4,4.91301]
[1742395736447,0.7983,2035.8,2035.5,4.91265]
[1742395736761,0.7983,2035.8,2035.5,9.82531]
[1742395737159,5.71045,2035.8,2035.5,4.91265]
[1742395737359,0.7983,2035.8,2035.6,4.91254]
[1742395738131,0.7983,2035.8,2035.6,4.91242]
[1742395738458,0.7983,2035.8,2035.6,4.91254]
[1742395738767,0.7983,2035.8,2035.7,4.91231]
[1742395738968,0.7983,2035.8,2035.6,4.91239]
[1742395739145,0.7983,2035.8,2035.5,4.91276]
[1742395739469,9.44014575,2035.7,2035.3,4.91322]
[1742395739866,4.91268,2035.6,2035.2,4.9135]
[1742395740068,5.32366575,2035.5,2034.8,0.8258]
[1742395740285,0.796,2035.5,2034.8,3.8258]
[1742395740442,0.796,2035.5,2035.2,4.91341]
[1742395740634,4.91319,2035.4,2035.0,4.91397]
[1742395740839,9.82645,2035.4,2035.0,4.91397]
[1742395741064,4.91319,2035.4,2035.0,9.8278]
[1742395741372,4.91319,2035.4,2035.0,4.91395]
[1742395741560,6.88010233,2035.5,2034.8,4.91436]
[1742395741561,5.73281,2035.2,2034.8,4.91436]
[1742395741870,5.73281,2035.2,2034.6,4.9148]
[1742395741871,4.91401,2035.0,2034.6,4.9148]
[1742395742051,9.44143575,2035.1,2034.6,4.9148]
[1742395742253,0.55,2035.1,2034.8,4.91434]
[1742395742467,0.55,2035.1,2034.9,4.91413]
[1742395742667,5.46387,2035.1,2034.7,4.91462]
[1742395742987,0.55,2035.1,2034.8,4.91441]
[1742395743154,0.55,2035.1,2034.8,4.91433]
[1742395743357,5.46384,2035.1,2034.8,4.91433]
[1742395743755,0.55,2035.1,2034.8,9.82868]
[1742395743938,7.17324758,2035.2,2034.9,4.91414]
[1742395744254,4.9138,2035.1,2034.8,4.91433]
[1742395744454,9.44146575,2035.1,2034.7,4.91466]
[1742395744770,4.91417,2035.0,2034.6,4.91483]
[1742395744954,6.68049708,2035.1,2034.4,0.8279]
[1742395745156,11.59427708,2035.1,2034.8,4.91444]
[1742395745368,6.68049708,2035.1,2034.7,4.91471]
[1742395745598,4.91401,2035.0,2034.6,4.91495]
[1742395745888,0.7942,2034.9,2034.6,4.91495]
[1742395746396,0.7942,2034.9,2034.6,4.91486]
[1742395746752,0.7942,2034.9,2034.7,4.91472]
[1742395746955,0.7942,2034.9,2034.8,4.91448]
[1742395747350,0.7916,2035.1,2034.8,9.8288]
[1742395747551,0.7916,2035.1,2034.8,9.82865]
[1742395747966,0.7916,2035.1,2034.8,4.91432]
[1742395748193,0.7916,2035.1,2034.9,4.9141]
[1742395748372,0.7916,2035.1,2034.8,4.91442]
[1742395748690,5.70543,2035.1,2034.8,4.91442]